[Event "*** Titled Tuesday Blitz"]
[Site "Chess.com"]
[Date "2020.12.01"]
[Round "5"]
[White "Isajevsky_Anton"]
[Black "Lukianoo"]
[Result "1-0"]
[WhiteElo "2580"]
[BlackElo "2750"]
[TimeControl "180+1"]
[EndTime "10:53:31 PST"]
[Termination "Isajevsky_Anton won by resignation"]

1. c4 {[%clk 0:02:56.4]} 1... Nf6 {[%clk 0:02:59.2]} 2. Nc3 {[%clk 0:02:55.4]}
2... e6 {[%clk 0:02:56.3]} 3. Nf3 {[%clk 0:02:54.2]} 3... Bb4 {[%clk 0:02:54.8]}
4. Qc2 {[%clk 0:02:52.8]} 4... O-O {[%clk 0:02:42.7]} 5. a3 {[%clk 0:02:52]}
5... Bxc3 {[%clk 0:02:41.7]} 6. Qxc3 {[%clk 0:02:52.9]} 6... b6 {[%clk 0:02:41]}
7. b4 {[%clk 0:02:52]} 7... Bb7 {[%clk 0:02:39.1]} 8. Bb2 {[%clk 0:02:52.2]}
8... d6 {[%clk 0:02:37.8]} 9. e3 {[%clk 0:02:47.3]} 9... e5 {[%clk 0:02:35]} 10.
Be2 {[%clk 0:02:47.2]} 10... Nbd7 {[%clk 0:02:33.4]} 11. O-O {[%clk 0:02:46.3]}
11... Ne4 {[%clk 0:02:32.2]} 12. Qc2 {[%clk 0:02:45.5]} 12... f5 {[%clk
0:02:31.7]} 13. d4 {[%clk 0:02:20.8]} 13... Ng5 {[%clk 0:02:29.8]} 14. d5 {[%clk
0:02:17.9]} 14... Nxf3+ {[%clk 0:02:25.3]} 15. Bxf3 {[%clk 0:02:09.5]} 15... Qe7
{[%clk 0:02:24.2]} 16. e4 {[%clk 0:01:59.1]} 16... f4 {[%clk 0:02:21.4]} 17. Bg4
{[%clk 0:01:56.7]} 17... Nf6 {[%clk 0:02:20.7]} 18. Be6+ {[%clk 0:01:56.3]}
18... Kh8 {[%clk 0:02:19.6]} 19. f3 {[%clk 0:01:56.4]} 19... Bc8 {[%clk
0:02:18.7]} 20. Bxc8 {[%clk 0:01:54.2]} 20... Raxc8 {[%clk 0:02:18.6]} 21. Rac1
{[%clk 0:01:43.2]} 21... g5 {[%clk 0:02:18.1]} 22. c5 {[%clk 0:01:42.4]} 22...
bxc5 {[%clk 0:02:10]} 23. bxc5 {[%clk 0:01:42.2]} 23... g4 {[%clk 0:01:53.7]}
24. cxd6 {[%clk 0:01:15.7]} 24... cxd6 {[%clk 0:01:53.4]} 25. Qxc8 {[%clk
0:01:16.3]} 25... Rxc8 {[%clk 0:01:52.8]} 26. Rxc8+ {[%clk 0:01:17.2]} 26... Ng8
{[%clk 0:01:46.9]} 27. Bc3 {[%clk 0:00:42.6]} 27... g3 {[%clk 0:01:30.4]} 28.
Rb1 {[%clk 0:00:25.2]} 28... Kg7 {[%clk 0:01:22.4]} 29. Ba5 {[%clk 0:00:18.8]}
29... gxh2+ {[%clk 0:01:18.1]} 30. Kh1 {[%clk 0:00:18.5]} 30... Qh4 {[%clk
0:01:13.8]} 31. Rb7+ {[%clk 0:00:18.2]} 31... Kh6 {[%clk 0:01:09.4]} 32. Rxg8
{[%clk 0:00:17.4]} 1-0

[Event "*** Titled Tuesday Blitz"]
[Site "Chess.com"]
[Date "2020.12.01"]
[Round "5"]
[White "nikitadovbnya2008"]
[Black "djano"]
[Result "0-1"]
[WhiteElo "2192"]
[BlackElo "2458"]
[TimeControl "180+1"]
[EndTime "10:53:32 PST"]
[Termination "djano won by resignation"]

1. d4 {[%clk 0:03:00.9]} 1... Nf6 {[%clk 0:02:59.2]} 2. c4 {[%clk 0:03:01.2]}
2... e6 {[%clk 0:02:56.3]} 3. Nf3 {[%clk 0:03:01.4]} 3... b6 {[%clk 0:02:53.8]}
4. e3 {[%clk 0:03:00.2]} 4... Bb7 {[%clk 0:02:54]} 5. Bd3 {[%clk 0:03:00.3]}
5... Bb4+ {[%clk 0:02:49.7]} 6. Nbd2 {[%clk 0:02:59.9]} 6... O-O {[%clk
0:02:48.4]} 7. O-O {[%clk 0:02:59.9]} 7... d5 {[%clk 0:02:46.8]} 8. a3 {[%clk
0:02:59.1]} 8... Bd6 {[%clk 0:02:45.1]} 9. b4 {[%clk 0:02:59]} 9... c5 {[%clk
0:02:36.6]} 10. bxc5 {[%clk 0:02:58.8]} 10... bxc5 {[%clk 0:02:36.6]} 11. cxd5
{[%clk 0:02:54.3]} 11... Nxd5 {[%clk 0:02:16.7]} 12. Ne4 {[%clk 0:02:49.8]}
12... cxd4 {[%clk 0:02:12.3]} 13. exd4 {[%clk 0:02:44]} 13... Bf4 {[%clk
0:02:02.2]} 14. Nc5 {[%clk 0:02:22.8]} 14... Bc6 {[%clk 0:01:52.3]} 15. Re1
{[%clk 0:02:14.7]} 15... Nd7 {[%clk 0:01:47]} 16. Qc2 {[%clk 0:02:09.6]} 16...
Nxc5 {[%clk 0:01:34.6]} 17. dxc5 {[%clk 0:02:07.9]} 17... h6 {[%clk 0:01:13.7]}
18. Bb2 {[%clk 0:02:04]} 18... Rb8 {[%clk 0:01:07.3]} 19. Rad1 {[%clk
0:02:02.7]} 19... Qa5 {[%clk 0:01:03]} 20. Ne5 {[%clk 0:01:52.8]} 20... Ba4
{[%clk 0:00:54.7]} 21. Qc4 {[%clk 0:01:22.7]} 21... Bxd1 {[%clk 0:00:52]} 22.
Rxd1 {[%clk 0:01:17.6]} 22... Rxb2 {[%clk 0:00:50.3]} 23. Nc6 {[%clk 0:00:53.1]}
23... Qc3 {[%clk 0:00:45.4]} 24. Qe4 {[%clk 0:00:52]} 24... g6 {[%clk
0:00:38.2]} 25. Ne7+ {[%clk 0:00:51]} 25... Nxe7 {[%clk 0:00:36.2]} 26. Qxf4
{[%clk 0:00:48.7]} 26... Qxd3 {[%clk 0:00:29.2]} 0-1

[Event "*** Titled Tuesday Blitz"]
[Site "Chess.com"]
[Date "2020.12.01"]
[Round "5"]
[White "DrVelja"]
[Black "Lion-Al-Messi"]
[Result "1-0"]
[WhiteElo "2792"]
[BlackElo "2581"]
[TimeControl "180+1"]
[EndTime "10:53:38 PST"]
[Termination "DrVelja won by resignation"]

1. d4 {[%clk 0:03:00.9]} 1... b6 {[%clk 0:03:00.9]} 2. e4 {[%clk 0:03:00.4]}
2... Bb7 {[%clk 0:03:01.8]} 3. Nc3 {[%clk 0:03:00.1]} 3... e6 {[%clk 0:03:02.3]}
4. Bd3 {[%clk 0:03:00.7]} 4... Bb4 {[%clk 0:03:00.4]} 5. Ne2 {[%clk 0:03:00.5]}
5... d5 {[%clk 0:02:58.1]} 6. e5 {[%clk 0:02:57.1]} 6... Ne7 {[%clk 0:02:53.7]}
7. a3 {[%clk 0:02:52.4]} 7... Bxc3+ {[%clk 0:02:52.5]} 8. Nxc3 {[%clk
0:02:53.3]} 8... a6 {[%clk 0:02:52]} 9. Ne2 {[%clk 0:02:51.3]} 9... c5 {[%clk
0:02:50.9]} 10. c3 {[%clk 0:02:51.9]} 10... Nbc6 {[%clk 0:02:50.2]} 11. O-O
{[%clk 0:02:52.2]} 11... c4 {[%clk 0:02:47.4]} 12. Bc2 {[%clk 0:02:51.5]} 12...
Na5 {[%clk 0:02:47.6]} 13. Ng3 {[%clk 0:02:45.6]} 13... Qc7 {[%clk 0:02:43.3]}
14. Nh5 {[%clk 0:02:42.8]} 14... O-O-O {[%clk 0:02:34.1]} 15. Nxg7 {[%clk
0:02:42.8]} 15... Ng6 {[%clk 0:02:07.8]} 16. Nh5 {[%clk 0:02:40.4]} 16... Kb8
{[%clk 0:01:55.2]} 17. Bg5 {[%clk 0:02:39.7]} 17... Rc8 {[%clk 0:01:53.2]} 18.
Qe2 {[%clk 0:02:36.5]} 18... Ka7 {[%clk 0:01:50.5]} 19. f4 {[%clk 0:02:36.2]}
19... f5 {[%clk 0:01:13]} 20. exf6 {[%clk 0:02:25.2]} 20... h6 {[%clk
0:01:12.4]} 21. Bxg6 {[%clk 0:02:17.1]} 21... hxg5 {[%clk 0:01:12.1]} 22. fxg5
{[%clk 0:02:15.6]} 22... Rcg8 {[%clk 0:01:12.1]} 23. f7 {[%clk 0:02:15.9]} 23...
Rxg6 {[%clk 0:01:09.6]} 24. f8=Q {[%clk 0:02:15.8]} 24... Rxf8 {[%clk
0:01:09.4]} 25. Rxf8 {[%clk 0:02:16.7]} 25... Rxg5 {[%clk 0:01:09.6]} 26. Raf1
{[%clk 0:02:15.8]} 26... Nb3 {[%clk 0:00:39.6]} 27. R1f7 {[%clk 0:02:11.5]}
27... Qd6 {[%clk 0:00:39.2]} 28. Nf4 {[%clk 0:02:03.2]} 28... e5 {[%clk
0:00:37.6]} 29. Nh3 {[%clk 0:01:56.3]} 29... Rg6 {[%clk 0:00:17.4]} 30. Qxe5
{[%clk 0:01:52.8]} 30... Qxe5 {[%clk 0:00:16.3]} 31. dxe5 {[%clk 0:01:53.7]}
31... d4 {[%clk 0:00:15.7]} 32. Nf4 {[%clk 0:01:54.2]} 32... dxc3 {[%clk
0:00:10.4]} 33. bxc3 {[%clk 0:01:51.4]} 33... Rg5 {[%clk 0:00:07.5]} 34. e6
{[%clk 0:01:50.6]} 34... Re5 {[%clk 0:00:07.4]} 35. e7 {[%clk 0:01:50.9]} 35...
Nd2 {[%clk 0:00:02.7]} 36. e8=Q {[%clk 0:01:50.8]} 36... Rxe8 {[%clk 0:00:01.6]}
37. Rxe8 {[%clk 0:01:51.7]} 37... a5 {[%clk 0:00:01.3]} 38. h4 {[%clk
0:01:50.1]} 38... Ka6 {[%clk 0:00:02.2]} 39. Rxb7 {[%clk 0:01:49.2]} 39... Kxb7
{[%clk 0:00:02.3]} 40. h5 {[%clk 0:01:50.1]} 40... Nb3 {[%clk 0:00:01.3]} 41. h6
{[%clk 0:01:50.9]} 41... Nc5 {[%clk 0:00:01]} 42. h7 {[%clk 0:01:51.8]} 42...
Ka6 {[%clk 0:00:01.1]} 43. h8=Q {[%clk 0:01:51.6]} 43... Kb5 {[%clk 0:00:02]}
44. Qd4 {[%clk 0:01:50.4]} 44... Ka4 {[%clk 0:00:02.9]} 45. Qxc4+ {[%clk
0:01:50.5]} 1-0

[Event "*** Titled Tuesday Blitz"]
[Site "Chess.com"]
[Date "2020.12.01"]
[Round "5"]
[White "rychessmaster1"]
[Black "ljuks68"]
[Result "1-0"]
[WhiteElo "2569"]
[BlackElo "2391"]
[TimeControl "180+1"]
[EndTime "10:53:39 PST"]
[Termination "rychessmaster1 won on time"]

1. d4 {[%clk 0:02:59.7]} 1... d5 {[%clk 0:02:55]} 2. Nc3 {[%clk 0:03:00.1]} 2...
e6 {[%clk 0:02:54.1]} 3. Bf4 {[%clk 0:03:00.7]} 3... Nf6 {[%clk 0:02:52.6]} 4.
Nb5 {[%clk 0:03:01.1]} 4... Na6 {[%clk 0:02:49.3]} 5. e3 {[%clk 0:03:01.5]} 5...
Be7 {[%clk 0:02:44.9]} 6. Nf3 {[%clk 0:03:01.5]} 6... O-O {[%clk 0:02:41.9]} 7.
Ne5 {[%clk 0:03:01.9]} 7... c5 {[%clk 0:02:19.4]} 8. c3 {[%clk 0:03:00.7]} 8...
Qb6 {[%clk 0:01:54.5]} 9. a4 {[%clk 0:02:57.5]} 9... c4 {[%clk 0:01:54]} 10. b3
{[%clk 0:02:54.8]} 10... cxb3 {[%clk 0:01:43.2]} 11. Qxb3 {[%clk 0:02:55.7]}
11... Ne4 {[%clk 0:01:33.1]} 12. Bd3 {[%clk 0:02:52.5]} 12... Nd6 {[%clk
0:01:32.4]} 13. O-O {[%clk 0:02:41.9]} 13... f6 {[%clk 0:01:31.1]} 14. Nf3
{[%clk 0:02:41.1]} 14... Bd7 {[%clk 0:01:31]} 15. Qb1 {[%clk 0:02:37.8]} 15...
Nxb5 {[%clk 0:01:17]} 16. axb5 {[%clk 0:02:34.8]} 16... Nc7 {[%clk 0:01:16.4]}
17. Bxc7 {[%clk 0:02:26.7]} 17... Qxc7 {[%clk 0:01:15.3]} 18. Bxh7+ {[%clk
0:02:27.5]} 18... Kh8 {[%clk 0:01:15.3]} 19. Rc1 {[%clk 0:02:23.7]} 19... f5
{[%clk 0:01:10.9]} 20. Bg6 {[%clk 0:02:22.3]} 20... Rf6 {[%clk 0:01:10.6]} 21.
Ne5 {[%clk 0:02:19]} 21... Bd6 {[%clk 0:01:07.4]} 22. Nf7+ {[%clk 0:02:09.7]}
22... Kg8 {[%clk 0:01:00.7]} 23. Nxd6 {[%clk 0:01:53.4]} 23... Rxg6 {[%clk
0:00:58.4]} 24. Rxa7 {[%clk 0:01:53.8]} 24... Rb8 {[%clk 0:00:39.1]} 25. Qb4
{[%clk 0:01:48.4]} 25... Qb6 {[%clk 0:00:16.6]} 26. Rca1 {[%clk 0:01:48.7]}
26... Kh7 {[%clk 0:00:13.9]} 27. f4 {[%clk 0:01:43.6]} 27... Rf6 {[%clk
0:00:11.7]} 28. R7a5 {[%clk 0:01:28.7]} 28... g5 {[%clk 0:00:06.7]} 29. c4
{[%clk 0:01:26.6]} 29... gxf4 {[%clk 0:00:04.8]} 30. c5 {[%clk 0:01:27]} 30...
Qd8 {[%clk 0:00:04.6]} 31. exf4 {[%clk 0:01:27.3]} 31... Rh6 {[%clk 0:00:04.2]}
32. g3 {[%clk 0:01:26.9]} 32... Qf6 {[%clk 0:00:03.8]} 33. R1a2 {[%clk
0:01:24.6]} 33... Qxd4+ {[%clk 0:00:03.1]} 34. Qxd4 {[%clk 0:01:24.8]} 1-0

[Event "*** Titled Tuesday Blitz"]
[Site "Chess.com"]
[Date "2020.12.01"]
[Round "5"]
[White "RaphCamora"]
[Black "politeplayer"]
[Result "1-0"]
[WhiteElo "2433"]
[BlackElo "2247"]
[TimeControl "180+1"]
[EndTime "10:53:47 PST"]
[Termination "RaphCamora won by resignation"]

1. e4 {[%clk 0:03:00.9]} 1... e6 {[%clk 0:02:58.6]} 2. b3 {[%clk 0:03:00]} 2...
c5 {[%clk 0:02:56.6]} 3. Bb2 {[%clk 0:02:59.2]} 3... b6 {[%clk 0:02:57]} 4. Nc3
{[%clk 0:02:55.7]} 4... Bb7 {[%clk 0:02:57.3]} 5. Nf3 {[%clk 0:02:51.7]} 5...
Nc6 {[%clk 0:02:56.1]} 6. Bc4 {[%clk 0:02:50.2]} 6... a6 {[%clk 0:02:55.4]} 7.
a4 {[%clk 0:02:49.2]} 7... Nf6 {[%clk 0:02:50.2]} 8. O-O {[%clk 0:02:38.9]} 8...
Qc7 {[%clk 0:02:41]} 9. Re1 {[%clk 0:02:35.2]} 9... Bd6 {[%clk 0:02:37.1]} 10.
h3 {[%clk 0:02:23.7]} 10... g5 {[%clk 0:02:27]} 11. Nd5 {[%clk 0:02:18.1]} 11...
exd5 {[%clk 0:02:16.9]} 12. exd5+ {[%clk 0:02:17.7]} 12... Ne5 {[%clk
0:01:34.4]} 13. d4 {[%clk 0:01:56.6]} 13... cxd4 {[%clk 0:01:27.1]} 14. Bxd4
{[%clk 0:01:54.1]} 14... O-O-O {[%clk 0:01:25.3]} 15. Nxe5 {[%clk 0:01:49.9]}
15... Nxd5 {[%clk 0:01:04.7]} 16. Bxd5 {[%clk 0:01:32.8]} 16... Bxd5 {[%clk
0:01:00.9]} 17. Bxb6 {[%clk 0:01:33]} 17... Qxb6 {[%clk 0:00:48.4]} 18. Qxd5
{[%clk 0:01:32]} 18... Bxe5 {[%clk 0:00:47.7]} 19. Rxe5 {[%clk 0:01:30.6]} 19...
Kb8 {[%clk 0:00:37.8]} 20. Rae1 {[%clk 0:01:19.8]} 20... h6 {[%clk 0:00:35.6]}
21. Re7 {[%clk 0:01:17.2]} 21... Qb4 {[%clk 0:00:24.3]} 22. R1e4 {[%clk
0:01:07.8]} 22... Qc3 {[%clk 0:00:21.9]} 23. Qd6+ {[%clk 0:01:02.2]} 23... Kb7
{[%clk 0:00:19.4]} 24. Rc4 {[%clk 0:00:58.5]} 24... Qa1+ {[%clk 0:00:16.9]} 25.
Kh2 {[%clk 0:00:57.6]} 25... Qf1 {[%clk 0:00:12.3]} 26. Rc7+ {[%clk 0:00:48]}
26... Ka8 {[%clk 0:00:11.5]} 27. Qd5+ {[%clk 0:00:45.8]} 1-0

[Event "*** Titled Tuesday Blitz"]
[Site "Chess.com"]
[Date "2020.12.01"]
[Round "5"]
[White "Smile2005"]
[Black "ondoko"]
[Result "1-0"]
[WhiteElo "2321"]
[BlackElo "2106"]
[TimeControl "180+1"]
[EndTime "10:53:48 PST"]
[Termination "Smile2005 won on time"]

1. Nf3 {[%clk 0:03:00.9]} 1... d5 {[%clk 0:02:58.5]} 2. g3 {[%clk 0:03:01.8]}
2... g6 {[%clk 0:02:58]} 3. Bg2 {[%clk 0:03:02.7]} 3... Bg7 {[%clk 0:02:58.4]}
4. O-O {[%clk 0:03:03.6]} 4... e5 {[%clk 0:02:58.7]} 5. d3 {[%clk 0:03:04.5]}
5... Ne7 {[%clk 0:02:58.3]} 6. e4 {[%clk 0:03:04.8]} 6... c6 {[%clk 0:02:56]} 7.
Nbd2 {[%clk 0:03:02.6]} 7... O-O {[%clk 0:02:55.4]} 8. b3 {[%clk 0:03:03.1]}
8... h6 {[%clk 0:02:23.7]} 9. Re1 {[%clk 0:02:58.8]} 9... dxe4 {[%clk
0:02:22.9]} 10. dxe4 {[%clk 0:02:57.2]} 10... Qc7 {[%clk 0:02:22.2]} 11. Bb2
{[%clk 0:02:56.7]} 11... Be6 {[%clk 0:02:20]} 12. c3 {[%clk 0:02:55.9]} 12...
Rd8 {[%clk 0:02:15.2]} 13. Qc2 {[%clk 0:02:55.9]} 13... Nd7 {[%clk 0:02:15.4]}
14. Bf1 {[%clk 0:02:52.5]} 14... b5 {[%clk 0:02:02]} 15. a4 {[%clk 0:02:50.9]}
15... a6 {[%clk 0:02:01.4]} 16. b4 {[%clk 0:02:46.5]} 16... bxa4 {[%clk
0:01:23]} 17. Qxa4 {[%clk 0:02:45.1]} 17... c5 {[%clk 0:01:23.3]} 18. b5 {[%clk
0:02:43.9]} 18... Nb6 {[%clk 0:01:20.2]} 19. Qc2 {[%clk 0:02:38.9]} 19... axb5
{[%clk 0:01:17.4]} 20. Bxb5 {[%clk 0:02:38.9]} 20... g5 {[%clk 0:01:00.7]} 21.
Kg2 {[%clk 0:02:26.2]} 21... Ng6 {[%clk 0:00:59.3]} 22. Rxa8 {[%clk 0:02:18.9]}
22... Rxa8 {[%clk 0:00:58.5]} 23. Rd1 {[%clk 0:02:19.4]} 23... c4 {[%clk
0:00:50.8]} 24. Ra1 {[%clk 0:02:13.1]} 24... Rxa1 {[%clk 0:00:41.9]} 25. Bxa1
{[%clk 0:02:14]} 25... Qc5 {[%clk 0:00:39.2]} 26. Qb1 {[%clk 0:02:12.3]} 26...
g4 {[%clk 0:00:25.4]} 27. Ne1 {[%clk 0:02:11.4]} 27... h5 {[%clk 0:00:26.3]} 28.
Nc2 {[%clk 0:02:09.2]} 28... h4 {[%clk 0:00:25.9]} 29. Ne3 {[%clk 0:02:07]}
29... h3+ {[%clk 0:00:24.2]} 30. Kg1 {[%clk 0:02:06.3]} 30... Nf4 {[%clk
0:00:16.6]} 31. Qb4 {[%clk 0:01:52.4]} 31... Qxb4 {[%clk 0:00:08.3]} 32. cxb4
{[%clk 0:01:53.3]} 32... Nd3 {[%clk 0:00:08.8]} 33. Ndxc4 {[%clk 0:01:50.1]}
33... Nxc4 {[%clk 0:00:07.6]} 34. Bxc4 {[%clk 0:01:49]} 34... Bxc4 {[%clk
0:00:04.5]} 35. Nxc4 {[%clk 0:01:48.9]} 35... Nxb4 {[%clk 0:00:04.6]} 36. Bxe5
{[%clk 0:01:49.2]} 36... Nd3 {[%clk 0:00:03.2]} 37. Bxg7 {[%clk 0:01:47.4]}
37... Kxg7 {[%clk 0:00:04.1]} 38. Ne3 {[%clk 0:01:47.7]} 38... Ne5 {[%clk
0:00:02.9]} 39. Kf1 {[%clk 0:01:41.8]} 39... Kg6 {[%clk 0:00:03.2]} 40. Ke2
{[%clk 0:01:41.5]} 40... Kg5 {[%clk 0:00:03.5]} 41. Nf1 {[%clk 0:01:36]} 41...
Nf3 {[%clk 0:00:03.5]} 42. Ke3 {[%clk 0:01:35.7]} 42... f6 {[%clk 0:00:02.4]}
43. Kd3 {[%clk 0:01:32.9]} 43... f5 {[%clk 0:00:02.7]} 44. Ke3 {[%clk
0:01:31.6]} 1-0

[Event "*** Titled Tuesday Blitz"]
[Site "Chess.com"]
[Date "2020.12.01"]
[Round "5"]
[White "Sviridov_Valery"]
[Black "Sashadav97"]
[Result "1-0"]
[WhiteElo "2915"]
[BlackElo "2629"]
[TimeControl "180+1"]
[EndTime "10:53:51 PST"]
[Termination "Sviridov_Valery won by resignation"]

1. Nf3 {[%clk 0:03:00.9]} 1... d5 {[%clk 0:02:50.8]} 2. g3 {[%clk 0:03:00.6]}
2... Nd7 {[%clk 0:02:39.9]} 3. d4 {[%clk 0:02:59.7]} 3... Nb6 {[%clk 0:02:39.3]}
4. Bg2 {[%clk 0:02:58.8]} 4... Bf5 {[%clk 0:02:39.4]} 5. a4 {[%clk 0:02:56.2]}
5... a5 {[%clk 0:02:35.6]} 6. O-O {[%clk 0:02:52.7]} 6... e6 {[%clk 0:02:35.9]}
7. Nbd2 {[%clk 0:02:37.4]} 7... Nf6 {[%clk 0:02:35]} 8. Nh4 {[%clk 0:02:37.5]}
8... Be7 {[%clk 0:02:32.8]} 9. Nxf5 {[%clk 0:02:37.2]} 9... exf5 {[%clk
0:02:33.7]} 10. c3 {[%clk 0:02:31.7]} 10... O-O {[%clk 0:02:32.2]} 11. Nf3
{[%clk 0:02:32.2]} 11... c6 {[%clk 0:02:25.9]} 12. Qb3 {[%clk 0:02:31.2]} 12...
Ne4 {[%clk 0:02:14.1]} 13. Ne5 {[%clk 0:02:29.1]} 13... Nd6 {[%clk 0:02:14.3]}
14. Nd3 {[%clk 0:02:26.3]} 14... Re8 {[%clk 0:02:10]} 15. Qc2 {[%clk 0:02:23.7]}
15... Bf8 {[%clk 0:02:07.6]} 16. Bf4 {[%clk 0:02:22.8]} 16... g6 {[%clk
0:02:05.3]} 17. Nc5 {[%clk 0:02:19.9]} 17... Ra7 {[%clk 0:02:00.8]} 18. Rfe1
{[%clk 0:02:17.7]} 18... Ne4 {[%clk 0:02:00.2]} 19. Nd3 {[%clk 0:02:17]} 19...
Bd6 {[%clk 0:01:58.2]} 20. Bh6 {[%clk 0:02:07.5]} 20... Bf8 {[%clk 0:01:51.6]}
21. Bc1 {[%clk 0:02:04.8]} 21... h5 {[%clk 0:01:49.9]} 22. f3 {[%clk 0:01:46.2]}
22... Nf6 {[%clk 0:01:47.4]} 23. Bg5 {[%clk 0:01:39.9]} 23... Be7 {[%clk
0:01:46.8]} 24. b3 {[%clk 0:01:40.2]} 24... Nh7 {[%clk 0:01:41.4]} 25. Bf4
{[%clk 0:01:34.7]} 25... Bd6 {[%clk 0:01:35.5]} 26. e4 {[%clk 0:01:34.5]} 26...
dxe4 {[%clk 0:01:20.7]} 27. fxe4 {[%clk 0:01:35.4]} 27... fxe4 {[%clk
0:01:21.4]} 28. Bxe4 {[%clk 0:01:35.2]} 28... Bxf4 {[%clk 0:00:57.2]} 29. Nxf4
{[%clk 0:01:36.1]} 29... Ng5 {[%clk 0:00:53.5]} 30. Bg2 {[%clk 0:01:30.9]} 30...
Kg7 {[%clk 0:00:34.2]} 31. Rxe8 {[%clk 0:01:27.1]} 31... Qxe8 {[%clk 0:00:35.1]}
32. Qd2 {[%clk 0:01:28]} 32... Nh7 {[%clk 0:00:31.8]} 33. Re1 {[%clk 0:01:27.3]}
33... Qd7 {[%clk 0:00:31.5]} 34. d5 {[%clk 0:01:24.9]} 34... c5 {[%clk
0:00:27.4]} 35. d6 {[%clk 0:01:19.9]} 35... Nf6 {[%clk 0:00:26.7]} 36. Re7
{[%clk 0:01:15.5]} 36... Qf5 {[%clk 0:00:22.8]} 37. Ne6+ {[%clk 0:01:15.5]}
37... Kg8 {[%clk 0:00:15]} 38. Qh6 {[%clk 0:01:15.2]} 1-0

[Event "*** Titled Tuesday Blitz"]
[Site "Chess.com"]
[Date "2020.12.01"]
[Round "5"]
[White "RamyresCoelho"]
[Black "arjwezhrtdrz"]
[Result "0-1"]
[WhiteElo "2090"]
[BlackElo "2310"]
[TimeControl "180+1"]
[EndTime "10:53:56 PST"]
[Termination "arjwezhrtdrz won by resignation"]

1. e4 {[%clk 0:03:00]} 1... e6 {[%clk 0:03:00]} 2. d4 {[%clk 0:02:59.9]} 2... d5
{[%clk 0:03:00.6]} 3. Nc3 {[%clk 0:03:00.2]} 3... dxe4 {[%clk 0:03:01.1]} 4.
Nxe4 {[%clk 0:03:00.4]} 4... Bd7 {[%clk 0:03:01.8]} 5. Be3 {[%clk 0:02:53.7]}
5... Bc6 {[%clk 0:03:01.2]} 6. Bd3 {[%clk 0:02:54.1]} 6... Nd7 {[%clk
0:03:00.5]} 7. Nf3 {[%clk 0:02:48.8]} 7... Ngf6 {[%clk 0:03:00]} 8. Nxf6+ {[%clk
0:02:48.4]} 8... Qxf6 {[%clk 0:02:49.2]} 9. Qe2 {[%clk 0:02:32.6]} 9... Bxf3
{[%clk 0:02:47.3]} 10. gxf3 {[%clk 0:02:33.5]} 10... O-O-O {[%clk 0:02:38.4]}
11. h4 {[%clk 0:02:27.5]} 11... h6 {[%clk 0:02:37.7]} 12. O-O-O {[%clk
0:02:26.8]} 12... Bd6 {[%clk 0:02:37]} 13. Be4 {[%clk 0:02:07.1]} 13... Nb6
{[%clk 0:02:07.2]} 14. c4 {[%clk 0:01:58.5]} 14... Bf4 {[%clk 0:02:04.5]} 15. c5
{[%clk 0:01:53.9]} 15... Nd5 {[%clk 0:01:59]} 16. Bxd5 {[%clk 0:01:50.2]} 16...
Rxd5 {[%clk 0:01:57.4]} 17. Kb1 {[%clk 0:01:46.6]} 17... Rhd8 {[%clk 0:01:51]}
18. Rd3 {[%clk 0:01:41]} 18... Bxe3 {[%clk 0:01:41.8]} 19. fxe3 {[%clk
0:01:40.6]} 19... e5 {[%clk 0:01:40.5]} 20. Rhd1 {[%clk 0:01:35.9]} 20... Qxh4
{[%clk 0:01:35.9]} 21. dxe5 {[%clk 0:01:31.4]} 21... Rxd3 {[%clk 0:01:32]} 22.
Rxd3 {[%clk 0:01:32.3]} 22... Rxd3 {[%clk 0:01:32]} 23. Qxd3 {[%clk 0:01:33.2]}
23... Qe1+ {[%clk 0:01:31.8]} 24. Kc2 {[%clk 0:01:30.2]} 24... Qf2+ {[%clk
0:01:31.4]} 25. Kc3 {[%clk 0:01:25.1]} 25... Qxf3 {[%clk 0:01:31.1]} 26. Qd4
{[%clk 0:01:00.8]} 26... Qf5 {[%clk 0:01:22]} 27. b4 {[%clk 0:00:56.5]} 27... a6
{[%clk 0:01:21.1]} 28. a4 {[%clk 0:00:56.1]} 28... f6 {[%clk 0:01:17.8]} 29.
exf6 {[%clk 0:00:28.8]} 29... Qxf6 {[%clk 0:01:17.4]} 30. Qxf6 {[%clk
0:00:28.1]} 30... gxf6 {[%clk 0:01:17.3]} 31. Kd4 {[%clk 0:00:29]} 31... Kd7
{[%clk 0:01:16.5]} 32. b5 {[%clk 0:00:26.7]} 32... c6 {[%clk 0:01:16.4]} 33.
bxa6 {[%clk 0:00:22.1]} 33... bxa6 {[%clk 0:01:16]} 34. a5 {[%clk 0:00:21.6]}
34... Ke6 {[%clk 0:01:15.8]} 35. Ke4 {[%clk 0:00:19]} 35... f5+ {[%clk
0:01:15.8]} 36. Kf4 {[%clk 0:00:19.1]} 36... Kf6 {[%clk 0:01:16]} 37. e4 {[%clk
0:00:17.4]} 37... fxe4 {[%clk 0:01:16.2]} 38. Kxe4 {[%clk 0:00:18.3]} 38... Ke6
{[%clk 0:01:17.1]} 39. Kd4 {[%clk 0:00:14.8]} 39... Kf5 {[%clk 0:01:15.8]} 40.
Kd3 {[%clk 0:00:14.6]} 40... Ke5 {[%clk 0:01:16.2]} 41. Ke3 {[%clk 0:00:10.3]}
41... Kd5 {[%clk 0:01:16.6]} 0-1